[Event "Late-Titled-Tuesday-Blitz-April-02-2024"]
[Site "Chess.com"]
[Date "2024.04.02"]
[Round "7"]
[White "LiemLe"]
[Black "Zhigalko_Sergei"]
[Result "1-0"]
[WhiteElo "3037"]
[BlackElo "2878"]
[TimeControl "180+1"]
[EndTime "15:16:31 PDT"]
[Termination "LiemLe won on time"]

1. Nf3 {[%clk 0:03:00.9]} 1... d5 {[%clk 0:02:59.4]} 2. e3 {[%clk 0:03:00.4]}
2... Nf6 {[%clk 0:02:58.6]} 3. c4 {[%clk 0:02:59.8]} 3... e6 {[%clk 0:02:58.7]}
4. b3 {[%clk 0:03:00.1]} 4... Bd6 {[%clk 0:02:58.1]} 5. Bb2 {[%clk 0:03:00.2]}
5... O-O {[%clk 0:02:58.7]} 6. Nc3 {[%clk 0:02:59.6]} 6... b6 {[%clk 0:02:42.7]}
7. cxd5 {[%clk 0:02:57.8]} 7... exd5 {[%clk 0:02:42.4]} 8. Nb5 {[%clk
0:02:58.3]} 8... Be7 {[%clk 0:02:38.6]} 9. Be5 {[%clk 0:02:57.3]} 9... Na6
{[%clk 0:02:35.8]} 10. a3 {[%clk 0:02:41.3]} 10... c5 {[%clk 0:02:14.2]} 11. Be2
{[%clk 0:02:40.6]} 11... Bb7 {[%clk 0:01:58.8]} 12. O-O {[%clk 0:02:31]} 12...
Re8 {[%clk 0:01:52.6]} 13. Rc1 {[%clk 0:02:27.9]} 13... Qd7 {[%clk 0:01:42.8]}
14. d4 {[%clk 0:02:14.7]} 14... Ne4 {[%clk 0:01:41]} 15. h3 {[%clk 0:02:03.3]}
15... Bf8 {[%clk 0:01:38.5]} 16. Bh2 {[%clk 0:01:49.7]} 16... Qe6 {[%clk
0:01:15.8]} 17. Nd2 {[%clk 0:01:39.2]} 17... Nd6 {[%clk 0:01:10.4]} 18. Bg4
{[%clk 0:01:18.4]} 18... Qg6 {[%clk 0:00:59.1]} 19. Nc3 {[%clk 0:01:03.6]} 19...
cxd4 {[%clk 0:00:50.6]} 20. exd4 {[%clk 0:01:04.5]} 20... Ne4 {[%clk 0:00:49.7]}
21. b4 {[%clk 0:01:03.5]} 21... Bd6 {[%clk 0:00:31.7]} 22. Bxd6 {[%clk
0:00:48.8]} 22... Qxd6 {[%clk 0:00:32.6]} 23. Nb5 {[%clk 0:00:46.4]} 23... Qf6
{[%clk 0:00:28.1]} 24. Nxe4 {[%clk 0:00:36.9]} 24... dxe4 {[%clk 0:00:28]} 25.
d5 {[%clk 0:00:36.9]} 25... Rad8 {[%clk 0:00:25.9]} 26. d6 {[%clk 0:00:37.1]}
26... Re5 {[%clk 0:00:15.3]} 27. Qe2 {[%clk 0:00:20.4]} 27... g6 {[%clk
0:00:12.1]} 28. Qc4 {[%clk 0:00:15.1]} 28... h5 {[%clk 0:00:06.4]} 29. Be2
{[%clk 0:00:15.3]} 29... Bd5 {[%clk 0:00:02.3]} 30. Qd4 {[%clk 0:00:14.5]} 30...
Be6 {[%clk 0:00:02.1]} 31. Nxa7 {[%clk 0:00:12.8]} 31... Qg5 {[%clk 0:00:01.7]}
32. Rc3 {[%clk 0:00:08.8]} 32... Nb8 {[%clk 0:00:01.3]} 33. Rg3 {[%clk
0:00:07.3]} 33... Qf6 {[%clk 0:00:01.3]} 34. Rc1 {[%clk 0:00:06.2]} 34... Bf5
{[%clk 0:00:01.8]} 35. Nc6 {[%clk 0:00:04.8]} 35... Rxd6 {[%clk 0:00:01.6]} 36.
Qxe5 {[%clk 0:00:04.7]} 36... Nxc6 {[%clk 0:00:02.2]} 37. Qxf6 {[%clk
0:00:04.8]} 37... Rxf6 {[%clk 0:00:03.1]} 38. Rgc3 {[%clk 0:00:04.9]} 38... Nd4
{[%clk 0:00:03.5]} 39. Bf1 {[%clk 0:00:05.6]} 39... Rd6 {[%clk 0:00:02.2]} 40.
Kh2 {[%clk 0:00:05.1]} 40... Be6 {[%clk 0:00:02.4]} 41. Kh1 {[%clk 0:00:04.5]}
41... Nb3 {[%clk 0:00:02.6]} 42. Re1 {[%clk 0:00:04.9]} 42... Rd2 {[%clk
0:00:02.1]} 43. Kg1 {[%clk 0:00:04.3]} 43... Ra2 {[%clk 0:00:01.6]} 44. Bc4
{[%clk 0:00:04.4]} 44... Bxc4 {[%clk 0:00:01.6]} 45. Rxc4 {[%clk 0:00:05.3]}
45... Nd2 {[%clk 0:00:01.5]} 46. Rc3 {[%clk 0:00:05.5]} 46... b5 {[%clk
0:00:01.6]} 47. h4 {[%clk 0:00:03.9]} 47... Kg7 {[%clk 0:00:01.6]} 48. Rc5
{[%clk 0:00:03.5]} 1-0

[Event "Late-Titled-Tuesday-Blitz-April-02-2024"]
[Site "Chess.com"]
[Date "2024.04.02"]
[Round "7"]
[White "Njal28"]
[Black "Eagle_2019"]
[Result "1-0"]
[WhiteElo "3053"]
[BlackElo "2862"]
[TimeControl "180+1"]
[EndTime "15:16:31 PDT"]
[Termination "Njal28 won by checkmate"]

1. e4 {[%clk 0:03:00.9]} 1... c6 {[%clk 0:02:58.7]} 2. d4 {[%clk 0:03:00.9]}
2... d5 {[%clk 0:02:56.8]} 3. e5 {[%clk 0:03:01.4]} 3... c5 {[%clk 0:02:55.2]}
4. Nf3 {[%clk 0:03:00.5]} 4... Nc6 {[%clk 0:02:49]} 5. dxc5 {[%clk 0:03:00.4]}
5... e6 {[%clk 0:02:48.8]} 6. Be3 {[%clk 0:02:57.5]} 6... Nge7 {[%clk
0:02:46.8]} 7. c3 {[%clk 0:02:57.2]} 7... Nf5 {[%clk 0:02:46.5]} 8. Bd4 {[%clk
0:02:55.5]} 8... Bd7 {[%clk 0:02:46.7]} 9. Bd3 {[%clk 0:02:50.9]} 9... Nfxd4
{[%clk 0:02:39.5]} 10. cxd4 {[%clk 0:02:51.8]} 10... b6 {[%clk 0:02:36.7]} 11.
O-O {[%clk 0:02:33.3]} 11... bxc5 {[%clk 0:02:35.8]} 12. dxc5 {[%clk 0:02:34.2]}
12... Bxc5 {[%clk 0:02:36.2]} 13. Nbd2 {[%clk 0:02:29.2]} 13... O-O {[%clk
0:02:36]} 14. Rc1 {[%clk 0:02:29.8]} 14... Bb6 {[%clk 0:02:35.6]} 15. Nb3 {[%clk
0:02:30.3]} 15... Rc8 {[%clk 0:02:19.6]} 16. h4 {[%clk 0:02:03.2]} 16... h6
{[%clk 0:02:03.2]} 17. Bb1 {[%clk 0:01:56.6]} 17... Ne7 {[%clk 0:01:36.7]} 18.
Qd3 {[%clk 0:01:43.3]} 18... g6 {[%clk 0:01:30.2]} 19. h5 {[%clk 0:01:43.4]}
19... Kg7 {[%clk 0:01:23.1]} 20. Nbd4 {[%clk 0:01:30]} 20... Nf5 {[%clk
0:01:07.6]} 21. Rxc8 {[%clk 0:01:21.1]} 21... Qxc8 {[%clk 0:01:03.7]} 22. hxg6
{[%clk 0:01:12.4]} 22... fxg6 {[%clk 0:01:00]} 23. Nxf5+ {[%clk 0:01:03.9]}
23... gxf5 {[%clk 0:00:52.7]} 24. Nh4 {[%clk 0:00:49.4]} 24... Qd8 {[%clk
0:00:49.9]} 25. Qh3 {[%clk 0:00:43.7]} 25... Qg5 {[%clk 0:00:47]} 26. Kh1 {[%clk
0:00:43.7]} 26... Bb5 {[%clk 0:00:43.5]} 27. f4 {[%clk 0:00:37.9]} 27... Qg4
{[%clk 0:00:35.6]} 28. Rf3 {[%clk 0:00:25.9]} 28... Be2 {[%clk 0:00:32.3]} 29.
Rg3 {[%clk 0:00:25]} 29... Rc8 {[%clk 0:00:29.7]} 30. Rxg4+ {[%clk 0:00:16.2]}
30... fxg4 {[%clk 0:00:29.6]} 31. Qa3 {[%clk 0:00:11.5]} 31... Bc5 {[%clk
0:00:25.8]} 32. Qc3 {[%clk 0:00:07.6]} 32... d4 {[%clk 0:00:25.4]} 33. Qb3
{[%clk 0:00:05.9]} 33... Bb6 {[%clk 0:00:23.1]} 34. Qxe6 {[%clk 0:00:05.9]}
34... Rc1+ {[%clk 0:00:22.6]} 35. Kh2 {[%clk 0:00:06.4]} 35... Rxb1 {[%clk
0:00:22.8]} 36. Qg6+ {[%clk 0:00:06.6]} 36... Kf8 {[%clk 0:00:23.1]} 37. Qxb1
{[%clk 0:00:06.6]} 37... d3 {[%clk 0:00:23.5]} 38. Qc1 {[%clk 0:00:05.5]} 38...
Bf2 {[%clk 0:00:23.4]} 39. Nf5 {[%clk 0:00:05.1]} 39... Kf7 {[%clk 0:00:21.9]}
40. Qc7+ {[%clk 0:00:05]} 40... Ke6 {[%clk 0:00:22.2]} 41. Ng7+ {[%clk 0:00:05]}
41... Kd5 {[%clk 0:00:22.6]} 42. Qd6+ {[%clk 0:00:05.4]} 42... Ke4 {[%clk
0:00:22.6]} 43. e6 {[%clk 0:00:05.3]} 43... Be3 {[%clk 0:00:04]} 44. g3 {[%clk
0:00:05.2]} 44... Kf3 {[%clk 0:00:03.8]} 45. Qd5+ {[%clk 0:00:05.1]} 45... Kf2
{[%clk 0:00:03.8]} 46. Nf5 {[%clk 0:00:05.5]} 46... Bd2 {[%clk 0:00:01.8]} 47.
e7 {[%clk 0:00:05.6]} 47... Be1 {[%clk 0:00:02.1]} 48. Qd4+ {[%clk 0:00:06.1]}
48... Kf1 {[%clk 0:00:02.2]} 49. Ne3+ {[%clk 0:00:06.8]} 49... Kf2 {[%clk
0:00:02.7]} 50. Ng2+ {[%clk 0:00:07.3]} 50... Kf3 {[%clk 0:00:02.9]} 51. Nxe1#
{[%clk 0:00:07.5]} 1-0

[Event "Late-Titled-Tuesday-Blitz-April-02-2024"]
[Site "Chess.com"]
[Date "2024.04.02"]
[Round "7"]
[White "ATM622"]
[Black "Gabcur"]
[Result "0-1"]
[WhiteElo "2513"]
[BlackElo "2359"]
[TimeControl "180+1"]
[EndTime "15:16:33 PDT"]
[Termination "Gabcur won by resignation"]

1. d4 {[%clk 0:03:00.9]} 1... d5 {[%clk 0:02:58.9]} 2. c4 {[%clk 0:03:01]} 2...
c6 {[%clk 0:02:57.7]} 3. Nf3 {[%clk 0:03:01.1]} 3... Nf6 {[%clk 0:02:57.3]} 4.
Nbd2 {[%clk 0:03:01.3]} 4... e6 {[%clk 0:02:56.8]} 5. g3 {[%clk 0:03:00.5]} 5...
c5 {[%clk 0:02:55.6]} 6. cxd5 {[%clk 0:02:59.9]} 6... exd5 {[%clk 0:02:55.9]} 7.
Bg2 {[%clk 0:03:00]} 7... Nc6 {[%clk 0:02:56.2]} 8. dxc5 {[%clk 0:02:59.5]} 8...
Bxc5 {[%clk 0:02:55.8]} 9. O-O {[%clk 0:02:59.8]} 9... O-O {[%clk 0:02:48.3]}
10. Nb3 {[%clk 0:02:59.6]} 10... Bb6 {[%clk 0:02:48.4]} 11. Nfd4 {[%clk
0:02:56.4]} 11... Re8 {[%clk 0:02:42.9]} 12. e3 {[%clk 0:02:53.3]} 12... Ne5
{[%clk 0:02:29.7]} 13. a4 {[%clk 0:02:48.3]} 13... a6 {[%clk 0:02:23.6]} 14. a5
{[%clk 0:02:47.8]} 14... Ba7 {[%clk 0:02:23.6]} 15. Bd2 {[%clk 0:02:44.2]} 15...
Nc4 {[%clk 0:02:15.1]} 16. Bc3 {[%clk 0:02:39]} 16... Ne4 {[%clk 0:02:13.8]} 17.
Qc2 {[%clk 0:02:29.5]} 17... Bd7 {[%clk 0:01:56]} 18. Rfd1 {[%clk 0:02:19.4]}
18... Rc8 {[%clk 0:01:52.4]} 19. Qd3 {[%clk 0:02:01.5]} 19... Nxc3 {[%clk
0:01:42]} 20. bxc3 {[%clk 0:01:50.9]} 20... Nb2 {[%clk 0:01:40.1]} 21. Qc2
{[%clk 0:01:51.5]} 21... Nxd1 {[%clk 0:01:40.1]} 22. Rxd1 {[%clk 0:01:52]} 22...
Ba4 {[%clk 0:01:23.9]} 23. Qa2 {[%clk 0:01:46.5]} 23... Bxd4 {[%clk 0:01:16.6]}
24. Rxd4 {[%clk 0:01:41.8]} 24... Bxb3 {[%clk 0:01:14.5]} 25. Qxb3 {[%clk
0:01:41.2]} 25... Qxa5 {[%clk 0:01:14.1]} 26. Bxd5 {[%clk 0:01:31.6]} 26... Re7
{[%clk 0:01:06.3]} 27. Rf4 {[%clk 0:01:09.8]} 27... Qxc3 {[%clk 0:00:45.6]} 28.
Bxf7+ {[%clk 0:00:53.7]} 28... Kh8 {[%clk 0:00:43.9]} 29. Qd5 {[%clk 0:00:40.9]}
29... Qc1+ {[%clk 0:00:38.3]} 30. Kg2 {[%clk 0:00:40.2]} 30... Qc6 {[%clk
0:00:37.3]} 31. Qxc6 {[%clk 0:00:36.3]} 31... Rxc6 {[%clk 0:00:35.9]} 32. Bd5
{[%clk 0:00:36.3]} 32... Rc8 {[%clk 0:00:35.4]} 33. Rb4 {[%clk 0:00:32.2]} 33...
b5 {[%clk 0:00:31.8]} 34. e4 {[%clk 0:00:32.3]} 34... g6 {[%clk 0:00:25.4]} 35.
h4 {[%clk 0:00:27.6]} 35... Kg7 {[%clk 0:00:25]} 36. Rd4 {[%clk 0:00:26.1]}
36... a5 {[%clk 0:00:20.6]} 37. f4 {[%clk 0:00:20]} 37... b4 {[%clk 0:00:19.6]}
38. Kf3 {[%clk 0:00:11.1]} 38... Ra7 {[%clk 0:00:18.5]} 39. h5 {[%clk
0:00:05.8]} 39... Rb8 {[%clk 0:00:18.3]} 40. Ba2 {[%clk 0:00:01.9]} 40... a4
{[%clk 0:00:17.8]} 41. hxg6 {[%clk 0:00:01.6]} 41... hxg6 {[%clk 0:00:17.3]} 42.
Bb1 {[%clk 0:00:01.9]} 42... b3 {[%clk 0:00:17]} 43. e5 {[%clk 0:00:02]} 43...
a3 {[%clk 0:00:17.3]} 44. f5 {[%clk 0:00:02]} 44... gxf5 {[%clk 0:00:14.8]} 45.
Bxf5 {[%clk 0:00:01.8]} 45... a2 {[%clk 0:00:15.1]} 46. Rg4+ {[%clk 0:00:01.9]}
46... Kf7 {[%clk 0:00:14.4]} 47. e6+ {[%clk 0:00:02.2]} 47... Kf6 {[%clk
0:00:14.5]} 48. Kf4 {[%clk 0:00:02.4]} 48... a1=Q {[%clk 0:00:13.9]} 49. Rg6+
{[%clk 0:00:02.4]} 49... Ke7 {[%clk 0:00:14.2]} 50. Rg7+ {[%clk 0:00:02.6]}
50... Kd6 {[%clk 0:00:14.6]} 51. Rxa7 {[%clk 0:00:02.2]} 51... Qxa7 {[%clk
0:00:14.2]} 52. e7 {[%clk 0:00:02.3]} 52... Qxe7 {[%clk 0:00:14.1]} 0-1

[Event "Late-Titled-Tuesday-Blitz-April-02-2024"]
[Site "Chess.com"]
[Date "2024.04.02"]
[Round "7"]
[White "BardArtem"]
[Black "nabukatnezarr"]
[Result "0-1"]
[WhiteElo "2824"]
[BlackElo "2639"]
[TimeControl "180+1"]
[EndTime "15:16:34 PDT"]
[Termination "nabukatnezarr won by resignation"]

1. e4 {[%clk 0:03:00.9]} 1... e5 {[%clk 0:02:57.7]} 2. d4 {[%clk 0:03:00.8]}
2... exd4 {[%clk 0:02:55.4]} 3. Qxd4 {[%clk 0:03:01.7]} 3... Nc6 {[%clk
0:02:55.1]} 4. Qd3 {[%clk 0:03:01.7]} 4... d5 {[%clk 0:02:48.6]} 5. Qxd5 {[%clk
0:02:58.9]} 5... Qxd5 {[%clk 0:02:47.9]} 6. exd5 {[%clk 0:02:59.8]} 6... Nb4
{[%clk 0:02:48.4]} 7. Bb5+ {[%clk 0:03:00.3]} 7... Bd7 {[%clk 0:02:47.7]} 8.
Bxd7+ {[%clk 0:03:00.9]} 8... Kxd7 {[%clk 0:02:48.6]} 9. Kd1 {[%clk 0:03:01.7]}
9... Nxd5 {[%clk 0:02:47.5]} 10. Nf3 {[%clk 0:03:02.3]} 10... Bd6 {[%clk
0:02:18.1]} 11. Ke2 {[%clk 0:02:58.3]} 11... Re8+ {[%clk 0:02:16.5]} 12. Kf1
{[%clk 0:02:58.3]} 12... Ngf6 {[%clk 0:02:13.4]} 13. c3 {[%clk 0:02:50.8]} 13...
Re7 {[%clk 0:02:12]} 14. Bg5 {[%clk 0:02:47]} 14... Rhe8 {[%clk 0:02:09.8]} 15.
Nbd2 {[%clk 0:02:46.8]} 15... Bf4 {[%clk 0:02:04.2]} 16. Bxf6 {[%clk 0:02:39.1]}
16... Nxf6 {[%clk 0:02:00.9]} 17. g3 {[%clk 0:02:38.6]} 17... Bxd2 {[%clk
0:01:56.2]} 18. Nxd2 {[%clk 0:02:39.5]} 18... Re2 {[%clk 0:01:38.5]} 19. Rd1
{[%clk 0:02:39]} 19... Kc8 {[%clk 0:01:38.9]} 20. Kg2 {[%clk 0:02:31.3]} 20...
Ng4 {[%clk 0:01:36.5]} 21. Rhf1 {[%clk 0:02:29.7]} 21... Ne3+ {[%clk 0:01:36.2]}
22. Kf3 {[%clk 0:02:28.9]} 22... Nxd1 {[%clk 0:01:27.9]} 23. Rxd1 {[%clk
0:02:28]} 23... Re1 {[%clk 0:01:28.2]} 24. Rxe1 {[%clk 0:02:22.9]} 24... Rxe1
{[%clk 0:01:29.1]} 25. Ne4 {[%clk 0:02:23.8]} 25... f6 {[%clk 0:01:26.6]} 26. a4
{[%clk 0:02:08]} 26... Ra1 {[%clk 0:01:22.1]} 27. b3 {[%clk 0:02:07.8]} 27...
Rb1 {[%clk 0:01:19.4]} 28. Nd2 {[%clk 0:02:05]} 28... Rb2 {[%clk 0:01:16.3]} 29.
Ke2 {[%clk 0:02:03.7]} 29... b6 {[%clk 0:01:16.5]} 30. Kd1 {[%clk 0:02:03.6]}
30... Ra2 {[%clk 0:01:14.2]} 31. Kc1 {[%clk 0:01:46]} 31... Kd7 {[%clk 0:01:14]}
32. Kd1 {[%clk 0:01:45.2]} 32... Ke6 {[%clk 0:01:12.7]} 33. Ke2 {[%clk
0:01:44.8]} 33... Kf5 {[%clk 0:01:11.8]} 34. f3 {[%clk 0:01:44.3]} 34... Rb2
{[%clk 0:01:01.6]} 35. Kd3 {[%clk 0:01:41.1]} 35... g5 {[%clk 0:00:55.3]} 36.
Ke3 {[%clk 0:01:36.4]} 36... g4 {[%clk 0:00:51.3]} 37. f4 {[%clk 0:01:01]} 37...
h5 {[%clk 0:00:51.1]} 38. Kd3 {[%clk 0:00:48.6]} 38... h4 {[%clk 0:00:49.5]} 39.
Ke3 {[%clk 0:00:31.8]} 39... h3 {[%clk 0:00:48.7]} 40. Kd3 {[%clk 0:00:30.4]}
40... a5 {[%clk 0:00:41.2]} 41. Ke3 {[%clk 0:00:19.7]} 41... c6 {[%clk
0:00:33.7]} 42. Kd3 {[%clk 0:00:12]} 42... b5 {[%clk 0:00:30.2]} 43. axb5 {[%clk
0:00:12.6]} 43... cxb5 {[%clk 0:00:31.1]} 44. c4 {[%clk 0:00:13.5]} 44... a4
{[%clk 0:00:26.4]} 45. bxa4 {[%clk 0:00:01.8]} 45... bxa4 {[%clk 0:00:27.3]} 46.
Kc3 {[%clk 0:00:02.4]} 46... a3 {[%clk 0:00:24.3]} 47. Nb3 {[%clk 0:00:03]}
47... Rxh2 {[%clk 0:00:20.6]} 48. c5 {[%clk 0:00:02.8]} 48... Ke6 {[%clk
0:00:20.8]} 49. Kb4 {[%clk 0:00:01.6]} 49... Rb2 {[%clk 0:00:18.7]} 50. Kxa3
{[%clk 0:00:01.5]} 50... Rxb3+ {[%clk 0:00:18.7]} 51. Kxb3 {[%clk 0:00:02.4]}
51... h2 {[%clk 0:00:19.6]} 52. f5+ {[%clk 0:00:02.6]} 52... Kd7 {[%clk
0:00:19.6]} 53. Kc4 {[%clk 0:00:01.5]} 53... h1=Q {[%clk 0:00:19.7]} 54. Kb5
{[%clk 0:00:02.4]} 54... Qc6+ {[%clk 0:00:19.2]} 0-1

[Event "Late-Titled-Tuesday-Blitz-April-02-2024"]
[Site "Chess.com"]
[Date "2024.04.02"]
[Round "7"]
[White "yaguigor"]
[Black "RichardShtivelband"]
[Result "1/2-1/2"]
[WhiteElo "2614"]
[BlackElo "2319"]
[TimeControl "180+1"]
[EndTime "15:16:35 PDT"]
[Termination "Game drawn - insufficient material"]

1. Nf3 {[%clk 0:03:00.9]} 1... Nf6 {[%clk 0:02:59.5]} 2. c4 {[%clk 0:03:00]}
2... c6 {[%clk 0:02:59]} 3. Nc3 {[%clk 0:02:58.9]} 3... d5 {[%clk 0:02:58.9]} 4.
d4 {[%clk 0:02:59.7]} 4... dxc4 {[%clk 0:02:58.1]} 5. a4 {[%clk 0:02:59]} 5...
Bf5 {[%clk 0:02:57.8]} 6. e3 {[%clk 0:02:57.6]} 6... e6 {[%clk 0:02:57.8]} 7.
Bxc4 {[%clk 0:02:58.3]} 7... Bb4 {[%clk 0:02:57.4]} 8. O-O {[%clk 0:02:58.1]}
8... Nbd7 {[%clk 0:02:56.7]} 9. Qe2 {[%clk 0:02:57.2]} 9... Bg6 {[%clk
0:02:55.4]} 10. Nh4 {[%clk 0:02:53.8]} 10... Bh5 {[%clk 0:02:54.3]} 11. Nf3
{[%clk 0:02:51.3]} 11... O-O {[%clk 0:02:53.4]} 12. e4 {[%clk 0:02:50.2]} 12...
e5 {[%clk 0:02:52.9]} 13. Be3 {[%clk 0:02:43.8]} 13... Bxc3 {[%clk 0:02:43.7]}
14. bxc3 {[%clk 0:02:41.4]} 14... Nxe4 {[%clk 0:02:43.5]} 15. Qc2 {[%clk
0:02:10.5]} 15... Bxf3 {[%clk 0:02:41.9]} 16. gxf3 {[%clk 0:02:11.4]} 16... Ng5
{[%clk 0:02:36.8]} 17. Qf5 {[%clk 0:02:09.3]} 17... Ne6 {[%clk 0:02:23.6]} 18.
Bxe6 {[%clk 0:02:02.5]} 18... fxe6 {[%clk 0:02:23.4]} 19. Qxe6+ {[%clk
0:02:03.4]} 19... Kh8 {[%clk 0:02:23.4]} 20. Kh1 {[%clk 0:01:55.6]} 20... Rf6
{[%clk 0:02:09.7]} 21. Qg4 {[%clk 0:01:53.5]} 21... Rg6 {[%clk 0:02:08.8]} 22.
Qh3 {[%clk 0:01:49.8]} 22... Qf6 {[%clk 0:02:03.2]} 23. Rg1 {[%clk 0:01:48.2]}
23... Nb6 {[%clk 0:01:58.5]} 24. Rxg6 {[%clk 0:01:47.6]} 24... Qxg6 {[%clk
0:01:57.2]} 25. dxe5 {[%clk 0:01:47.5]} 25... Rf8 {[%clk 0:01:54.8]} 26. Rg1
{[%clk 0:01:35.8]} 26... Qf7 {[%clk 0:01:45.7]} 27. e6 {[%clk 0:01:21.2]} 27...
Qe7 {[%clk 0:01:45]} 28. Bxb6 {[%clk 0:01:17.4]} 28... axb6 {[%clk 0:01:44.5]}
29. Rd1 {[%clk 0:01:18.2]} 29... h6 {[%clk 0:01:39.5]} 30. Rd7 {[%clk
0:01:14.2]} 30... Qg5 {[%clk 0:01:31.1]} 31. Qg4 {[%clk 0:01:09.2]} 31... Qf6
{[%clk 0:01:08.8]} 32. c4 {[%clk 0:01:07.5]} 32... Re8 {[%clk 0:01:06.2]} 33. e7
{[%clk 0:00:44]} 33... Rxe7 {[%clk 0:01:01.9]} 34. Rxe7 {[%clk 0:00:41.9]} 34...
Qxe7 {[%clk 0:01:01.9]} 35. Kg2 {[%clk 0:00:38.7]} 35... Kg8 {[%clk 0:00:38.2]}
36. h4 {[%clk 0:00:37.3]} 36... Kf7 {[%clk 0:00:35.7]} 37. Qf5+ {[%clk
0:00:33.9]} 37... Qf6 {[%clk 0:00:31]} 38. Qd7+ {[%clk 0:00:28.2]} 38... Qe7
{[%clk 0:00:28.6]} 39. Qxe7+ {[%clk 0:00:25.3]} 39... Kxe7 {[%clk 0:00:28.7]}
40. Kg3 {[%clk 0:00:26]} 40... Kf6 {[%clk 0:00:26.8]} 41. Kg4 {[%clk 0:00:25.2]}
41... g6 {[%clk 0:00:25.2]} 42. h5 {[%clk 0:00:17.5]} 42... gxh5+ {[%clk
0:00:20]} 43. Kxh5 {[%clk 0:00:18.4]} 43... Kf5 {[%clk 0:00:20.2]} 44. Kxh6
{[%clk 0:00:18.8]} 44... Kf4 {[%clk 0:00:20.6]} 45. Kg6 {[%clk 0:00:19.4]} 45...
Kxf3 {[%clk 0:00:21.1]} 46. Kf5 {[%clk 0:00:19.4]} 46... Kxf2 {[%clk 0:00:21.4]}
47. Ke6 {[%clk 0:00:20]} 47... Ke3 {[%clk 0:00:21.4]} 48. Kd6 {[%clk 0:00:20.5]}
48... Kd4 {[%clk 0:00:21.8]} 49. Kc7 {[%clk 0:00:20.9]} 49... Kxc4 {[%clk
0:00:22]} 50. Kxb6 {[%clk 0:00:19.5]} 50... c5 {[%clk 0:00:18.7]} 51. Kxb7
{[%clk 0:00:20.1]} 51... Kb4 {[%clk 0:00:18.7]} 52. Kb6 {[%clk 0:00:19.7]} 52...
c4 {[%clk 0:00:18.8]} 53. a5 {[%clk 0:00:19.5]} 53... c3 {[%clk 0:00:19]} 54. a6
{[%clk 0:00:20.2]} 54... c2 {[%clk 0:00:19.7]} 55. a7 {[%clk 0:00:20.9]} 55...
c1=Q {[%clk 0:00:19.4]} 56. a8=Q {[%clk 0:00:21.3]} 56... Qc5+ {[%clk
0:00:18.2]} 57. Kb7 {[%clk 0:00:21.5]} 57... Qd5+ {[%clk 0:00:18]} 58. Kb8
{[%clk 0:00:21.5]} 58... Qxa8+ {[%clk 0:00:16.6]} 59. Kxa8 {[%clk 0:00:22.4]}
1/2-1/2

[Event "Late-Titled-Tuesday-Blitz-April-02-2024"]
[Site "Chess.com"]
[Date "2024.04.02"]
[Round "7"]
[White "FairChess_on_YouTube"]
[Black "sergoy"]
[Result "0-1"]
[WhiteElo "3042"]
[BlackElo "2922"]
[TimeControl "180+1"]
[EndTime "15:16:36 PDT"]
[Termination "sergoy won on time"]

1. d4 {[%clk 0:03:00.9]} 1... d5 {[%clk 0:02:58.6]} 2. c4 {[%clk 0:03:01.3]}
2... c6 {[%clk 0:02:59.2]} 3. Nf3 {[%clk 0:02:59.6]} 3... Nf6 {[%clk 0:02:59.8]}
4. e3 {[%clk 0:03:00]} 4... Bf5 {[%clk 0:02:56.5]} 5. Nc3 {[%clk 0:02:59.9]}
5... e6 {[%clk 0:02:57]} 6. Nh4 {[%clk 0:03:00.2]} 6... Be4 {[%clk 0:02:56.7]}
7. f3 {[%clk 0:02:59.9]} 7... Bg6 {[%clk 0:02:56.9]} 8. Qb3 {[%clk 0:03:00.5]}
8... Qc7 {[%clk 0:02:56.9]} 9. Bd2 {[%clk 0:02:58.3]} 9... Be7 {[%clk
0:02:55.7]} 10. Nxg6 {[%clk 0:02:54.4]} 10... hxg6 {[%clk 0:02:56.6]} 11. cxd5
{[%clk 0:02:53.9]} 11... cxd5 {[%clk 0:02:57.5]} 12. O-O-O {[%clk 0:02:53.6]}
12... Nc6 {[%clk 0:02:57.6]} 13. Kb1 {[%clk 0:02:53.6]} 13... a6 {[%clk
0:02:57.8]} 14. Rc1 {[%clk 0:02:51.7]} 14... Nd7 {[%clk 0:02:57.5]} 15. Bd3
{[%clk 0:02:50.4]} 15... Rc8 {[%clk 0:02:52.2]} 16. Ne2 {[%clk 0:02:45.8]} 16...
Qb6 {[%clk 0:02:50.9]} 17. Qa4 {[%clk 0:02:40.9]} 17... Qd8 {[%clk 0:02:37.8]}
18. h4 {[%clk 0:02:22.6]} 18... Rxh4 {[%clk 0:02:19.4]} 19. Rxh4 {[%clk
0:02:21.7]} 19... Bxh4 {[%clk 0:02:20.3]} 20. e4 {[%clk 0:02:21.5]} 20... Kf8
{[%clk 0:02:09.6]} 21. exd5 {[%clk 0:02:04.7]} 21... exd5 {[%clk 0:02:09.5]} 22.
Qb3 {[%clk 0:01:54.6]} 22... Nb6 {[%clk 0:02:09.5]} 23. Rh1 {[%clk 0:01:46.3]}
23... Kg8 {[%clk 0:01:26.3]} 24. Qd1 {[%clk 0:01:45.6]} 24... Nc4 {[%clk
0:01:05.9]} 25. Bc1 {[%clk 0:01:40]} 25... Bg5 {[%clk 0:00:45]} 26. f4 {[%clk
0:01:38.1]} 26... Bf6 {[%clk 0:00:41.5]} 27. Rh3 {[%clk 0:01:33.7]} 27... Qd7
{[%clk 0:00:28.8]} 28. Qh1 {[%clk 0:00:57.4]} 28... Kf8 {[%clk 0:00:28.8]} 29.
g4 {[%clk 0:00:57.2]} 29... Nb4 {[%clk 0:00:13.4]} 30. g5 {[%clk 0:00:48.1]}
30... Bd8 {[%clk 0:00:09.4]} 31. Nc3 {[%clk 0:00:36.5]} 31... Nxd3 {[%clk
0:00:08.1]} 32. Nxd5 {[%clk 0:00:36.7]} 32... f5 {[%clk 0:00:05.8]} 33. gxf6
{[%clk 0:00:36.5]} 33... Qf5 {[%clk 0:00:03.4]} 34. fxg7+ {[%clk 0:00:28.7]}
34... Kf7 {[%clk 0:00:03.4]} 35. g8=Q+ {[%clk 0:00:04.5]} 35... Kxg8 {[%clk
0:00:03.2]} 36. Rh8+ {[%clk 0:00:05.1]} 36... Kf7 {[%clk 0:00:03.9]} 37. Rh7+
{[%clk 0:00:02.8]} 37... Ke6 {[%clk 0:00:03.5]} 38. Ka1 {[%clk 0:00:02.4]} 38...
Qxd5 {[%clk 0:00:02.9]} 39. f5+ {[%clk 0:00:01.5]} 39... gxf5 {[%clk 0:00:02.7]}
40. Qh6+ {[%clk 0:00:01.2]} 40... Bf6 {[%clk 0:00:03.4]} 41. Bg5 {[%clk
0:00:01.1]} 41... Qd8 {[%clk 0:00:02.2]} 42. Qg6 {[%clk 0:00:01.2]} 42... Nce5
{[%clk 0:00:02.2]} 43. dxe5 {[%clk 0:00:01.1]} 43... Nxe5 {[%clk 0:00:01.6]} 44.
Re7+ {[%clk 0:00:01.8]} 44... Qxe7 {[%clk 0:00:01.9]} 45. Qh5 {[%clk 0:00:02.5]}
45... Bxg5 {[%clk 0:00:02.3]} 0-1